[Event "*** Titled Tuesday Blitz"]
[Site "Chess.com"]
[Date "2018.11.06"]
[Round "5"]
[White "murmah2003"]
[Black "pultineviciuspaulius"]
[Result "0-1"]
[WhiteElo "2496"]
[BlackElo "2580"]
[TimeControl "180+2"]
[EndTime "14:12:19 PST"]
[Termination "pultineviciuspaulius won by resignation"]

1. d4 {[%clk 0:03:01.9]} 1... Nf6 {[%clk 0:03:01.1]} 2. c4 {[%clk 0:03:02.9]}
2... g6 {[%clk 0:03:02.5]} 3. Nc3 {[%clk 0:03:04.2]} 3... d5 {[%clk 0:03:03.8]}
4. Bg5 {[%clk 0:03:03.9]} 4... Bg7 {[%clk 0:03:03.8]} 5. Bxf6 {[%clk 0:03:02.4]}
5... Bxf6 {[%clk 0:03:05.7]} 6. cxd5 {[%clk 0:03:04]} 6... c5 {[%clk 0:03:07.2]}
7. dxc5 {[%clk 0:03:03.7]} 7... Nd7 {[%clk 0:02:56.4]} 8. e3 {[%clk 0:03:04.3]}
8... O-O {[%clk 0:02:55.3]} 9. Bc4 {[%clk 0:02:59.6]} 9... Qa5 {[%clk
0:02:52.9]} 10. Ne2 {[%clk 0:02:53.9]} 10... Nxc5 {[%clk 0:02:54.2]} 11. O-O
{[%clk 0:02:47.6]} 11... Qb4 {[%clk 0:02:54.2]} 12. Bb3 {[%clk 0:02:29.3]} 12...
Rd8 {[%clk 0:02:54.8]} 13. Nd4 {[%clk 0:02:25.4]} 13... Bxd4 {[%clk 0:02:39.5]}
14. Qxd4 {[%clk 0:02:25.6]} 14... Qxd4 {[%clk 0:02:39.4]} 15. exd4 {[%clk
0:02:27.5]} 15... Nxb3 {[%clk 0:02:40.8]} 16. axb3 {[%clk 0:02:29.4]} 16... e6
{[%clk 0:02:42.2]} 17. Rfe1 {[%clk 0:02:13.9]} 17... exd5 {[%clk 0:02:42.3]} 18.
Re7 {[%clk 0:02:14.9]} 18... Kf8 {[%clk 0:02:37.5]} 19. Rc7 {[%clk 0:02:12.7]}
19... Rd7 {[%clk 0:02:31.8]} 20. Rc5 {[%clk 0:01:14.8]} 20... Rd6 {[%clk
0:01:29.8]} 21. Nb5 {[%clk 0:00:37.6]} 21... Rc6 {[%clk 0:01:30.6]} 22. Nc7
{[%clk 0:00:30.6]} 22... Rb8 {[%clk 0:01:28.3]} 23. Nxd5 {[%clk 0:00:20.1]}
23... Be6 {[%clk 0:01:25.2]} 24. Nc3 {[%clk 0:00:14.9]} 24... Rd8 {[%clk
0:01:10.4]} 25. Rxc6 {[%clk 0:00:05.2]} 25... bxc6 {[%clk 0:01:12.3]} 26. Rxa7
{[%clk 0:00:04.3]} 26... Rxd4 {[%clk 0:01:13.9]} 27. h3 {[%clk 0:00:03.5]} 27...
Rd2 {[%clk 0:01:15]} 28. Rc7 {[%clk 0:00:04.1]} 28... Rxb2 {[%clk 0:01:09.7]}
29. Rxc6 {[%clk 0:00:05.3]} 29... Rxb3 {[%clk 0:01:11.6]} 30. Ne4 {[%clk
0:00:06.2]} 30... Bd5 {[%clk 0:01:11.5]} 31. Rc8+ {[%clk 0:00:07.7]} 31... Ke7
{[%clk 0:01:12.1]} 32. Ng3 {[%clk 0:00:04.8]} 32... h6 {[%clk 0:01:12.8]} 33.
Rc1 {[%clk 0:00:04.6]} 33... h5 {[%clk 0:01:13.7]} 34. Re1+ {[%clk 0:00:05.8]}
34... Kd6 {[%clk 0:01:14.9]} 35. Ne2 {[%clk 0:00:06.8]} 35... Rb4 {[%clk
0:01:15.3]} 36. Rd1 {[%clk 0:00:07]} 36... Ke5 {[%clk 0:01:14.8]} 37. Nc3 {[%clk
0:00:05.4]} 37... Bc6 {[%clk 0:01:16.1]} 38. Re1+ {[%clk 0:00:06.5]} 38... Kf6
{[%clk 0:01:17.6]} 39. Rd1 {[%clk 0:00:06.9]} 39... Rc4 {[%clk 0:01:19]} 40. Ne2
{[%clk 0:00:07.7]} 40... Ke5 {[%clk 0:01:19.7]} 41. Re1 {[%clk 0:00:07.6]} 41...
h4 {[%clk 0:01:19.3]} 42. Nc1+ {[%clk 0:00:05.7]} 42... Kf5 {[%clk 0:01:12.3]}
43. Nd3 {[%clk 0:00:06.5]} 43... Be4 {[%clk 0:01:13.8]} 44. Nb2 {[%clk
0:00:06.4]} 44... Rd4 {[%clk 0:01:12]} 45. Nd1 {[%clk 0:00:07.1]} 45... g5
{[%clk 0:01:13.5]} 46. Ne3+ {[%clk 0:00:09]} 46... Kg6 {[%clk 0:01:14.5]} 47.
Ra1 {[%clk 0:00:09.6]} 47... f5 {[%clk 0:00:59.8]} 48. Ra6+ {[%clk 0:00:10.4]}
48... Kf7 {[%clk 0:01:01.2]} 49. f3 {[%clk 0:00:09.7]} 49... Bd3 {[%clk
0:01:00.9]} 50. Ra5 {[%clk 0:00:09.6]} 50... Kg6 {[%clk 0:00:59]} 51. Rc5 {[%clk
0:00:09.8]} 51... Ra4 {[%clk 0:00:53]} 52. Rc6+ {[%clk 0:00:09.8]} 52... Kf7
{[%clk 0:00:53.1]} 53. Nd5 {[%clk 0:00:08.2]} 53... Ra1+ {[%clk 0:00:53.2]} 54.
Kh2 {[%clk 0:00:09.4]} 54... f4 {[%clk 0:00:45.3]} 55. Rf6+ {[%clk 0:00:06.6]}
55... Kg7 {[%clk 0:00:46.3]} 56. Rd6 {[%clk 0:00:07.9]} 56... Bf1 {[%clk
0:00:43.7]} 57. Nc3 {[%clk 0:00:06.1]} 57... Ra3 {[%clk 0:00:25.7]} 58. Ne4
{[%clk 0:00:04.7]} 58... Ra2 {[%clk 0:00:21.1]} 59. Rd2 {[%clk 0:00:04.5]} 59...
Rxd2 {[%clk 0:00:21.3]} 60. Nxd2 {[%clk 0:00:06.4]} 60... Bd3 {[%clk 0:00:22.7]}
61. Kg1 {[%clk 0:00:07.7]} 61... Kf6 {[%clk 0:00:23.8]} 62. Kf2 {[%clk
0:00:09.1]} 62... Ke5 {[%clk 0:00:25.2]} 63. Nb3 {[%clk 0:00:10.4]} 63... Bc4
{[%clk 0:00:26]} 64. Nc5 {[%clk 0:00:10.6]} 64... Kf5 {[%clk 0:00:25.4]} 65. Ne4
{[%clk 0:00:11.3]} 65... Bd5 {[%clk 0:00:26.4]} 66. Nc3 {[%clk 0:00:12.4]} 66...
Bc6 {[%clk 0:00:26.9]} 67. Ke1 {[%clk 0:00:13.6]} 67... Ke5 {[%clk 0:00:28.1]}
68. Kd2 {[%clk 0:00:14.4]} 68... Kd4 {[%clk 0:00:29.4]} 69. Ne2+ {[%clk
0:00:15.3]} 69... Kc4 {[%clk 0:00:30.8]} 70. Ke1 {[%clk 0:00:12.8]} 70... Kd3
{[%clk 0:00:31.1]} 71. Kf2 {[%clk 0:00:14]} 71... Bd5 {[%clk 0:00:30.9]} 72.
Nc1+ {[%clk 0:00:13.6]} 72... Kd2 {[%clk 0:00:31.6]} 73. Ne2 {[%clk 0:00:15]}
73... Kd3 {[%clk 0:00:33.1]} 74. Nc1+ {[%clk 0:00:16]} 74... Kd4 {[%clk
0:00:30.9]} 75. Ne2+ {[%clk 0:00:17.1]} 75... Ke5 {[%clk 0:00:32]} 76. Nc3
{[%clk 0:00:17.6]} 76... Bc6 {[%clk 0:00:32.7]} 77. Na2 {[%clk 0:00:18.1]} 77...
Kd4 {[%clk 0:00:32.9]} 78. Nc1 {[%clk 0:00:17.6]} 78... Ba4 {[%clk 0:00:32.3]}
79. Ne2+ {[%clk 0:00:18.5]} 79... Kd3 {[%clk 0:00:32.9]} 80. Nc1+ {[%clk
0:00:18.5]} 80... Kc4 {[%clk 0:00:34.3]} 81. Ne2 {[%clk 0:00:20.4]} 81... Bd1
{[%clk 0:00:35.1]} 82. Nc1 {[%clk 0:00:12.3]} 82... Kc3 {[%clk 0:00:36]} 83.
Na2+ {[%clk 0:00:09.8]} 83... Kb3 {[%clk 0:00:29.6]} 84. Nc1+ {[%clk 0:00:10.7]}
84... Kc4 {[%clk 0:00:24.4]} 85. Ke1 {[%clk 0:00:10.5]} 85... Ba4 {[%clk
0:00:25.8]} 86. Kd2 {[%clk 0:00:11.3]} 86... Bc6 {[%clk 0:00:25.7]} 87. Nd3
{[%clk 0:00:11.6]} 87... Kd4 {[%clk 0:00:27.2]} 88. Nb4 {[%clk 0:00:11.1]} 88...
Bb7 {[%clk 0:00:28.3]} 89. Nc2+ {[%clk 0:00:11.9]} 89... Ke5 {[%clk 0:00:27.9]}
90. Ne1 {[%clk 0:00:12.8]} 90... Ba6 {[%clk 0:00:25.7]} 91. Nd3+ {[%clk
0:00:14.7]} 91... Kd4 {[%clk 0:00:25.3]} 92. Nf2 {[%clk 0:00:15.6]} 92... Bf1
{[%clk 0:00:26.2]} 93. Ne4 {[%clk 0:00:11.3]} 93... g4 {[%clk 0:00:27.4]} 94.
hxg4 {[%clk 0:00:04.3]} 94... Bxg2 {[%clk 0:00:28.8]} 95. Ng5 {[%clk 0:00:05.7]}
95... h3 {[%clk 0:00:27.6]} 96. Nxh3 {[%clk 0:00:02.4]} 96... Bxh3 {[%clk
0:00:28.5]} 97. Ke2 {[%clk 0:00:04.3]} 97... Ke5 {[%clk 0:00:26.9]} 98. Kf2
{[%clk 0:00:05]} 98... Kf6 {[%clk 0:00:27.2]} 99. Ke2 {[%clk 0:00:06.3]} 99...
Kg5 {[%clk 0:00:28.1]} 100. Ke1 {[%clk 0:00:06.5]} 100... Kh4 {[%clk 0:00:28.4]}
101. Kf2 {[%clk 0:00:07.6]} 101... Kg5 {[%clk 0:00:28.1]} 102. Kg1 {[%clk
0:00:07.8]} 102... Kg6 {[%clk 0:00:26.7]} 103. Kf2 {[%clk 0:00:07.1]} 103... Kf6
{[%clk 0:00:27.8]} 104. Ke1 {[%clk 0:00:04.3]} 104... Ke5 {[%clk 0:00:27.8]}
105. Ke2 {[%clk 0:00:05.5]} 105... Kd4 {[%clk 0:00:29]} 106. Kf2 {[%clk
0:00:06.6]} 106... Kd3 {[%clk 0:00:29.8]} 107. Kg1 {[%clk 0:00:06.9]} 107... Ke3
{[%clk 0:00:28.8]} 108. Kh2 {[%clk 0:00:05.2]} 108... Bf1 {[%clk 0:00:29.9]}
109. g5 {[%clk 0:00:06.3]} 109... Kxf3 {[%clk 0:00:29.4]} 110. g6 {[%clk
0:00:07.3]} 110... Bc4 {[%clk 0:00:27.8]} 111. g7 {[%clk 0:00:09.2]} 111... Be6
{[%clk 0:00:27.8]} 112. Kg1 {[%clk 0:00:09.2]} 112... Kg3 {[%clk 0:00:29]} 113.
Kf1 {[%clk 0:00:10.3]} 113... f3 {[%clk 0:00:29.9]} 114. Ke1 {[%clk 0:00:11.5]}
114... f2+ {[%clk 0:00:30.9]} 0-1

[Event "*** Titled Tuesday Blitz"]
[Site "Chess.com"]
[Date "2018.11.06"]
[Round "6"]
[White "sergiochess83"]
[Black "nubair1198"]
[Result "0-1"]
[WhiteElo "2759"]
[BlackElo "2574"]
[TimeControl "180+2"]
[EndTime "14:14:54 PST"]
[Termination "nubair1198 won by resignation"]

1. e4 {[%clk 0:03:01.9]} 1... c6 {[%clk 0:03:01.1]} 2. d4 {[%clk 0:03:02.2]}
2... d5 {[%clk 0:03:02.9]} 3. e5 {[%clk 0:03:04.1]} 3... c5 {[%clk 0:03:04.1]}
4. dxc5 {[%clk 0:03:03.8]} 4... e6 {[%clk 0:03:05.3]} 5. Be3 {[%clk 0:02:55.5]}
5... Nd7 {[%clk 0:03:03.4]} 6. Bb5 {[%clk 0:02:47.6]} 6... Ne7 {[%clk
0:03:04.6]} 7. f4 {[%clk 0:02:42.5]} 7... Nf5 {[%clk 0:02:57.8]} 8. Bf2 {[%clk
0:02:43.3]} 8... Qa5+ {[%clk 0:02:58.8]} 9. Nc3 {[%clk 0:02:43.8]} 9... a6
{[%clk 0:03:00.3]} 10. Bxd7+ {[%clk 0:02:41.8]} 10... Bxd7 {[%clk 0:03:02.2]}
11. g4 {[%clk 0:02:36.1]} 11... d4 {[%clk 0:02:32.5]} 12. gxf5 {[%clk
0:02:22.4]} 12... dxc3 {[%clk 0:02:33.4]} 13. fxe6 {[%clk 0:02:18.7]} 13...
cxb2+ {[%clk 0:02:29.3]} 0-1

[Event "*** Titled Tuesday Blitz"]
[Site "Chess.com"]
[Date "2018.11.06"]
[Round "6"]
[White "DanielNaroditsky"]
[Black "Aklanion"]
[Result "1-0"]
[WhiteElo "2966"]
[BlackElo "2209"]
[TimeControl "180+2"]
[EndTime "14:15:58 PST"]
[Termination "DanielNaroditsky won by resignation"]

1. Nf3 {[%clk 0:02:59.3]} 1... Nf6 {[%clk 0:03:00.5]} 2. c4 {[%clk 0:03:00.5]}
2... g6 {[%clk 0:03:01.1]} 3. Nc3 {[%clk 0:02:54.2]} 3... Bg7 {[%clk 0:03:01.4]}
4. e4 {[%clk 0:02:55.6]} 4... d6 {[%clk 0:03:02.6]} 5. d4 {[%clk 0:02:57.4]}
5... O-O {[%clk 0:03:03.7]} 6. Be2 {[%clk 0:02:58.9]} 6... e5 {[%clk 0:03:05.2]}
7. O-O {[%clk 0:02:58.3]} 7... Nc6 {[%clk 0:03:06.2]} 8. d5 {[%clk 0:02:59.9]}
8... Ne7 {[%clk 0:03:07.8]} 9. Qc2 {[%clk 0:03:01]} 9... Nh5 {[%clk 0:02:47.4]}
10. Rd1 {[%clk 0:03:01.6]} 10... f5 {[%clk 0:02:40.8]} 11. Ng5 {[%clk
0:03:02.9]} 11... Nf6 {[%clk 0:02:37.8]} 12. Ne6 {[%clk 0:03:03.3]} 12... Bxe6
{[%clk 0:02:34.4]} 13. dxe6 {[%clk 0:03:05.2]} 13... fxe4 {[%clk 0:02:32]} 14.
Nxe4 {[%clk 0:03:04.3]} 14... Nxe4 {[%clk 0:02:25.1]} 15. Qxe4 {[%clk
0:03:05.3]} 15... c6 {[%clk 0:02:26.6]} 16. Bg5 {[%clk 0:02:59.2]} 16... Bf6
{[%clk 0:02:23.6]} 17. Bxf6 {[%clk 0:02:53]} 17... Rxf6 {[%clk 0:02:25.5]} 18.
c5 {[%clk 0:02:54.8]} 18... Rf4 {[%clk 0:02:16.4]} 19. Qe3 {[%clk 0:02:47]}
19... Nd5 {[%clk 0:02:17.5]} 20. Qb3 {[%clk 0:02:42]} 20... Rb4 {[%clk 0:02:13]}
21. Qa3 {[%clk 0:02:31.7]} 21... dxc5 {[%clk 0:02:06.1]} 22. Rac1 {[%clk
0:02:32.9]} 22... Qe7 {[%clk 0:02:03.5]} 23. Bc4 {[%clk 0:02:24.9]} 1-0

[Event "*** Titled Tuesday Blitz"]
[Site "Chess.com"]
[Date "2018.11.06"]
[Round "6"]
[White "bascheyaro"]
[Black "lucasmito"]
[Result "1-0"]
[WhiteElo "2719"]
[BlackElo "2476"]
[TimeControl "180+2"]
[EndTime "14:15:59 PST"]
[Termination "bascheyaro won by resignation"]

1. d4 {[%clk 0:03:01.9]} 1... Nf6 {[%clk 0:03:00]} 2. Nf3 {[%clk 0:03:03.1]}
2... g6 {[%clk 0:03:00.5]} 3. c4 {[%clk 0:03:04.3]} 3... Bg7 {[%clk 0:03:01.4]}
4. Nc3 {[%clk 0:03:05.1]} 4... d5 {[%clk 0:03:02.8]} 5. Bf4 {[%clk 0:03:03.4]}
5... O-O {[%clk 0:02:49.2]} 6. c5 {[%clk 0:03:04.4]} 6... b6 {[%clk 0:02:46.3]}
7. b4 {[%clk 0:03:05.5]} 7... a5 {[%clk 0:02:46.7]} 8. cxb6 {[%clk 0:03:07]}
8... cxb6 {[%clk 0:02:46.8]} 9. bxa5 {[%clk 0:03:08.4]} 9... Rxa5 {[%clk
0:02:45.1]} 10. Bxb8 {[%clk 0:03:08.7]} 10... Bg4 {[%clk 0:02:35]} 11. Be5
{[%clk 0:03:08.5]} 11... Qc8 {[%clk 0:02:31.7]} 12. Qb3 {[%clk 0:03:07.9]} 12...
Qc6 {[%clk 0:02:22.2]} 13. e3 {[%clk 0:02:38.5]} 13... Rfa8 {[%clk 0:02:22.5]}
14. Bb5 {[%clk 0:02:34]} 14... Qc8 {[%clk 0:02:23.2]} 15. a4 {[%clk 0:02:33.5]}
15... Bxf3 {[%clk 0:02:13.5]} 16. gxf3 {[%clk 0:02:34.4]} 16... Qh3 {[%clk
0:02:13.4]} 17. Ke2 {[%clk 0:02:35.2]} 17... R5a7 {[%clk 0:02:09]} 18. Bxf6
{[%clk 0:02:35.8]} 18... Bxf6 {[%clk 0:02:09.8]} 19. Nxd5 {[%clk 0:02:37]} 19...
Rc8 {[%clk 0:02:09]} 20. Nxf6+ {[%clk 0:02:35.7]} 20... exf6 {[%clk 0:02:10.9]}
21. Rac1 {[%clk 0:02:36.3]} 21... Rxc1 {[%clk 0:02:10.5]} 22. Rxc1 {[%clk
0:02:38.2]} 22... Qxh2 {[%clk 0:02:12.3]} 23. Qd5 {[%clk 0:02:35]} 23... h5
{[%clk 0:02:07.3]} 24. Rc8+ {[%clk 0:02:32.9]} 24... Kg7 {[%clk 0:02:08.3]} 25.
Qd8 {[%clk 0:02:34.1]} 25... Kh6 {[%clk 0:02:06.9]} 26. f4 {[%clk 0:02:35.2]}
26... g5 {[%clk 0:02:05.6]} 27. Qxf6+ {[%clk 0:02:36.1]} 1-0

[Event "*** Titled Tuesday Blitz"]
[Site "Chess.com"]
[Date "2018.11.06"]
[Round "6"]
[White "dmosesov"]
[Black "GasconJR"]
[Result "1-0"]
[WhiteElo "2363"]
[BlackElo "2406"]
[TimeControl "180+2"]
[EndTime "14:16:05 PST"]
[Termination "dmosesov won by resignation"]

1. e4 {[%clk 0:03:01.9]} 1... c5 {[%clk 0:03:00]} 2. Nf3 {[%clk 0:03:02.3]} 2...
d6 {[%clk 0:03:01.4]} 3. d4 {[%clk 0:03:02.8]} 3... cxd4 {[%clk 0:03:02.8]} 4.
Nxd4 {[%clk 0:03:04.4]} 4... Nf6 {[%clk 0:03:04.3]} 5. Nc3 {[%clk 0:03:05.6]}
5... a6 {[%clk 0:03:05.8]} 6. Bg5 {[%clk 0:03:05.9]} 6... e6 {[%clk 0:03:06.2]}
7. f4 {[%clk 0:03:06.8]} 7... h6 {[%clk 0:03:07.8]} 8. Bh4 {[%clk 0:03:07.7]}
8... Qb6 {[%clk 0:03:09.3]} 9. Qd2 {[%clk 0:03:09]} 9... Qxb2 {[%clk 0:03:10.4]}
10. Rb1 {[%clk 0:03:10.4]} 10... Qa3 {[%clk 0:03:11.9]} 11. Bd3 {[%clk
0:02:24.7]} 11... Be7 {[%clk 0:03:03]} 12. O-O {[%clk 0:02:23.7]} 12... Qc5
{[%clk 0:02:56]} 13. Bf2 {[%clk 0:02:22.9]} 13... Ng4 {[%clk 0:02:55]} 14. Nxe6
{[%clk 0:02:15.7]} 14... Qa5 {[%clk 0:02:29.6]} 15. Bb6 {[%clk 0:02:13.1]} 15...
Qa3 {[%clk 0:02:09.1]} 16. Nc7+ {[%clk 0:02:08.4]} 16... Kf8 {[%clk 0:01:50.8]}
17. Rb3 {[%clk 0:02:08]} 1-0

[Event "*** Titled Tuesday Blitz"]
[Site "Chess.com"]
[Date "2018.11.06"]
[Round "6"]
[White "MFBerna"]
[Black "Atanejhad"]
[Result "1-0"]
[WhiteElo "2377"]
[BlackElo "2234"]
[TimeControl "180+2"]
[EndTime "14:16:51 PST"]
[Termination "MFBerna won by checkmate"]

1. e4 {[%clk 0:03:01.9]} 1... Nf6 {[%clk 0:03:01.2]} 2. e5 {[%clk 0:03:01.6]}
2... Nd5 {[%clk 0:03:02.6]} 3. d4 {[%clk 0:03:03.2]} 3... d6 {[%clk 0:03:03.8]}
4. Nf3 {[%clk 0:03:04.8]} 4... Bg4 {[%clk 0:03:04.7]} 5. Be2 {[%clk 0:03:06.1]}
5... e6 {[%clk 0:03:06.1]} 6. exd6 {[%clk 0:03:06.9]} 6... cxd6 {[%clk 0:03:07]}
7. O-O {[%clk 0:03:08.5]} 7... Be7 {[%clk 0:03:08.2]} 8. c4 {[%clk 0:03:10]}
8... Nb6 {[%clk 0:03:08.8]} 9. Nc3 {[%clk 0:03:09.4]} 9... O-O {[%clk
0:03:09.3]} 10. Be3 {[%clk 0:03:10.1]} 10... Nc6 {[%clk 0:03:10]} 11. b3 {[%clk
0:03:07.4]} 11... Bf6 {[%clk 0:03:07.5]} 12. h3 {[%clk 0:03:05.3]} 12... Bh5
{[%clk 0:03:05.3]} 13. Qd2 {[%clk 0:03:04.2]} 13... Qe7 {[%clk 0:02:51]} 14. Ne4
{[%clk 0:03:03.3]} 14... Bg6 {[%clk 0:02:26.9]} 15. Nxf6+ {[%clk 0:03:04.1]}
15... gxf6 {[%clk 0:02:25.8]} 16. a4 {[%clk 0:02:55.8]} 16... d5 {[%clk
0:02:09.6]} 17. a5 {[%clk 0:02:51.6]} 17... Nd7 {[%clk 0:02:08.4]} 18. Bh6
{[%clk 0:02:50.6]} 18... Rfd8 {[%clk 0:02:01.7]} 19. cxd5 {[%clk 0:02:51.3]}
19... Nb4 {[%clk 0:01:55.6]} 20. dxe6 {[%clk 0:02:45.1]} 20... fxe6 {[%clk
0:01:57.5]} 21. Bc4 {[%clk 0:02:40.8]} 21... Kh8 {[%clk 0:01:48]} 22. Rfe1
{[%clk 0:02:41]} 22... e5 {[%clk 0:01:49.2]} 23. dxe5 {[%clk 0:02:34]} 23...
Nxe5 {[%clk 0:01:49.3]} 24. Nxe5 {[%clk 0:02:29]} 24... fxe5 {[%clk 0:01:36.8]}
25. Qg5 {[%clk 0:02:21.8]} 25... Qxg5 {[%clk 0:01:23.8]} 26. Bxg5 {[%clk
0:02:23.7]} 26... Nc2 {[%clk 0:01:24.9]} 27. Bf6# {[%clk 0:02:24.2]} 1-0

[Event "*** Titled Tuesday Blitz"]
[Site "Chess.com"]
[Date "2018.11.06"]
[Round "6"]
[White "Shivagami"]
[Black "Andrew-FB00"]
[Result "1-0"]
[WhiteElo "2042"]
[BlackElo "1780"]
[TimeControl "180+2"]
[EndTime "14:17:16 PST"]
[Termination "Shivagami won by resignation"]

1. d4 {[%clk 0:03:01.9]} 1... Nf6 {[%clk 0:02:59.9]} 2. Bf4 {[%clk 0:03:00.3]}
2... e6 {[%clk 0:02:59.9]} 3. e3 {[%clk 0:02:59.9]} 3... d5 {[%clk 0:02:56.7]}
4. Nd2 {[%clk 0:02:59.8]} 4... Bd6 {[%clk 0:02:57]} 5. Bg3 {[%clk 0:02:58.7]}
5... O-O {[%clk 0:02:57.1]} 6. Ngf3 {[%clk 0:02:57.8]} 6... b6 {[%clk
0:02:55.2]} 7. c3 {[%clk 0:02:57.8]} 7... c5 {[%clk 0:02:53]} 8. Bd3 {[%clk
0:02:57.4]} 8... Bb7 {[%clk 0:02:49.4]} 9. Qe2 {[%clk 0:02:54.9]} 9... Nc6
{[%clk 0:02:48.2]} 10. Rd1 {[%clk 0:02:52.2]} 10... Qc7 {[%clk 0:02:38]} 11. Bh4
{[%clk 0:02:43.1]} 11... Be7 {[%clk 0:02:14.2]} 12. Bg3 {[%clk 0:02:35.4]} 12...
Bd6 {[%clk 0:02:14.4]} 13. e4 {[%clk 0:02:34.9]} 13... Nxe4 {[%clk 0:02:08.5]}
14. Nxe4 {[%clk 0:02:27]} 14... dxe4 {[%clk 0:02:05.9]} 15. Qxe4 {[%clk
0:02:14.7]} 15... g6 {[%clk 0:02:00]} 16. Qh4 {[%clk 0:02:07.9]} 16... Bxg3
{[%clk 0:01:46.3]} 17. hxg3 {[%clk 0:02:07.3]} 17... f5 {[%clk 0:01:37.8]} 18.
Ng5 {[%clk 0:02:05.3]} 18... Rf7 {[%clk 0:01:30.8]} 19. Nxf7 {[%clk 0:02:03.3]}
19... Qxf7 {[%clk 0:01:31.4]} 20. dxc5 {[%clk 0:01:49.8]} 20... bxc5 {[%clk
0:01:28.6]} 21. O-O {[%clk 0:01:48.6]} 21... e5 {[%clk 0:01:26.8]} 22. Bc4
{[%clk 0:01:48.4]} 1-0

[Event "*** Titled Tuesday Blitz"]
[Site "Chess.com"]
[Date "2018.11.06"]
[Round "6"]
[White "burbur555"]
[Black "Caminator2000"]
[Result "1-0"]
[WhiteElo "2547"]
[BlackElo "2319"]
[TimeControl "180+2"]
[EndTime "14:17:55 PST"]
[Termination "burbur555 won by resignation"]

1. d4 {[%clk 0:03:01.9]} 1... b5 {[%clk 0:02:59.6]} 2. e3 {[%clk 0:02:59.9]}
2... a6 {[%clk 0:02:59.9]} 3. c4 {[%clk 0:02:59.6]} 3... Bb7 {[%clk 0:02:59.8]}
4. Nf3 {[%clk 0:02:58.7]} 4... b4 {[%clk 0:02:43.3]} 5. a3 {[%clk 0:02:57.6]}
5... e6 {[%clk 0:02:28.2]} 6. axb4 {[%clk 0:02:55.8]} 6... Bxb4+ {[%clk
0:02:30.1]} 7. Bd2 {[%clk 0:02:56.1]} 7... a5 {[%clk 0:02:22.9]} 8. Bxb4 {[%clk
0:02:55.9]} 8... axb4 {[%clk 0:02:20.8]} 9. Rxa8 {[%clk 0:02:55.6]} 9... Bxa8
{[%clk 0:02:22.7]} 10. Qa4 {[%clk 0:02:55.2]} 10... Nc6 {[%clk 0:02:23.7]} 11.
Nbd2 {[%clk 0:02:50.5]} 11... Nf6 {[%clk 0:02:21.2]} 12. Be2 {[%clk 0:02:49]}
12... O-O {[%clk 0:02:14.3]} 13. O-O {[%clk 0:02:49.4]} 13... Qe7 {[%clk
0:01:56.9]} 14. Ra1 {[%clk 0:02:46.9]} 14... g6 {[%clk 0:01:54.3]} 15. Ne1
{[%clk 0:02:38.6]} 15... Bb7 {[%clk 0:01:35.1]} 16. Nd3 {[%clk 0:02:38]} 16...
Ra8 {[%clk 0:01:32.9]} 17. Qd1 {[%clk 0:02:37.6]} 17... d6 {[%clk 0:01:30.1]}
18. Rxa8+ {[%clk 0:02:35.3]} 18... Bxa8 {[%clk 0:01:31.5]} 19. Qa4 {[%clk
0:02:35.5]} 19... Qd8 {[%clk 0:01:32.5]} 20. Bf3 {[%clk 0:02:35.1]} 20... d5
{[%clk 0:01:14.5]} 21. cxd5 {[%clk 0:02:35]} 21... Nxd5 {[%clk 0:01:06.5]} 22.
Bxd5 {[%clk 0:02:33.9]} 22... exd5 {[%clk 0:01:07.8]} 23. Nc5 {[%clk 0:02:29.6]}
23... Qb8 {[%clk 0:00:52.1]} 24. Nf3 {[%clk 0:02:19.5]} 24... Kg7 {[%clk
0:00:48.2]} 25. Ne1 {[%clk 0:02:18]} 25... Ne7 {[%clk 0:00:24.2]} 26. Ned3
{[%clk 0:02:16.4]} 1-0

[Event "*** Titled Tuesday Blitz"]
[Site "Chess.com"]
[Date "2018.11.06"]
[Round "6"]
[White "sere99"]
[Black "kharov2001"]
[Result "1-0"]
[WhiteElo "2313"]
[BlackElo "2205"]
[TimeControl "180+2"]
[EndTime "14:17:56 PST"]
[Termination "sere99 won by resignation"]

1. d4 {[%clk 0:03:01.9]} 1... Nf6 {[%clk 0:03:00.5]} 2. c4 {[%clk 0:02:59.5]}
2... e6 {[%clk 0:03:01.6]} 3. Nc3 {[%clk 0:03:00.5]} 3... Bb4 {[%clk 0:03:02.9]}
4. Qc2 {[%clk 0:03:02]} 4... c5 {[%clk 0:03:03.5]} 5. dxc5 {[%clk 0:03:02]} 5...
Na6 {[%clk 0:03:04.4]} 6. a3 {[%clk 0:03:02.5]} 6... Bxc3+ {[%clk 0:03:05.2]} 7.
Qxc3 {[%clk 0:03:04.4]} 7... Nxc5 {[%clk 0:03:06.7]} 8. b4 {[%clk 0:03:06]} 8...
Nce4 {[%clk 0:03:06.7]} 9. Qd4 {[%clk 0:03:07.2]} 9... d5 {[%clk 0:02:51]} 10.
c5 {[%clk 0:02:54.7]} 10... b6 {[%clk 0:02:47.3]} 11. f3 {[%clk 0:02:53.4]}
11... bxc5 {[%clk 0:02:48.2]} 12. bxc5 {[%clk 0:02:44.4]} 12... Qa5+ {[%clk
0:02:48.9]} 13. Qb4 {[%clk 0:02:40.1]} 13... Qxb4+ {[%clk 0:02:19.6]} 14. axb4
{[%clk 0:02:38.3]} 14... Nc3 {[%clk 0:02:21.5]} 15. e3 {[%clk 0:02:33.9]} 15...
Bd7 {[%clk 0:02:19.4]} 16. Ne2 {[%clk 0:02:16.2]} 16... Nb5 {[%clk 0:02:17.1]}
17. Nd4 {[%clk 0:02:12.9]} 17... Nxd4 {[%clk 0:01:59.4]} 18. exd4 {[%clk
0:02:10.9]} 18... O-O {[%clk 0:02:01.3]} 19. b5 {[%clk 0:02:06.4]} 19... Rfb8
{[%clk 0:02:01.4]} 20. Ra5 {[%clk 0:01:57.7]} 20... Rc8 {[%clk 0:01:48.4]} 21.
Be3 {[%clk 0:01:49.3]} 21... Ne8 {[%clk 0:01:40.9]} 22. Kd2 {[%clk 0:01:48.3]}
22... Nc7 {[%clk 0:01:41.2]} 23. Bd3 {[%clk 0:01:48.6]} 23... Rcb8 {[%clk
0:01:39.4]} 24. Bf4 {[%clk 0:01:48.4]} 24... Rc8 {[%clk 0:01:39.3]} 25. Rha1
{[%clk 0:01:47]} 25... f6 {[%clk 0:01:30.4]} 26. Bxc7 {[%clk 0:01:47.2]} 26...
Rxc7 {[%clk 0:01:30.9]} 27. b6 {[%clk 0:01:49.1]} 27... Rb7 {[%clk 0:01:29.8]}
28. Rxa7 {[%clk 0:01:50]} 28... Rbxa7 {[%clk 0:01:28.4]} 29. Rxa7 {[%clk
0:01:51.9]} 29... Rxa7 {[%clk 0:01:27.6]} 30. bxa7 {[%clk 0:01:53.8]} 30... Bc6
{[%clk 0:01:28.1]} 31. Bb5 {[%clk 0:01:50.9]} 31... Ba8 {[%clk 0:01:27.2]} 32.
c6 {[%clk 0:01:52.3]} 32... Kf8 {[%clk 0:01:27.8]} 33. c7 {[%clk 0:01:53.8]} 1-0